bitfinex/quotes_SOLUSD_20251216
["timestamp","ask_amount","ask_price","bid_price","bid_amount"]
[1765910224933,10.27797425,127.78,127.73,0.67]
[1765910226656,10.27797425,127.78,127.74,0.67]
[1765910226957,10.27797425,127.78,127.75,9.25]
[1765910227257,10.27607464,127.78,127.75,9.25]
[1765910227451,2.45012379,127.77,127.75,8.58]
[1765910227631,2.45012379,127.77,127.76,0.67]
[1765910228457,10.27668714,127.77,127.76,0.67]
[1765910229367,10.2763613,127.78,127.76,0.67]
[1765910229729,2.45012379,127.77,127.75,9.25]
[1765910230130,2.45012379,127.76,127.75,8.58]
[1765910230656,10.27729974,127.76,127.75,8.58]
[1765910231251,7.82717595,127.76,127.75,8.58]
[1765910231545,7.82717595,127.76,127.75,9.25]
[1765910234467,7.82717595,127.76,127.75,8.58]
[1765910234755,10.27729974,127.76,127.75,8.58]
[1765910236238,10.27729974,127.76,127.73,0.67]
[1765910236439,10.27729974,127.76,127.74,9.25]
[1765910236838,10.27729974,127.76,127.74,0.67]
[1765910237038,10.27729974,127.76,127.75,8.58]
[1765910238435,10.27729974,127.76,127.74,0.67]
[1765910238664,10.27729974,127.76,127.75,8.58]
[1765910239764,7.82717595,127.76,127.75,8.58]
[1765910239966,10.27729974,127.76,127.75,8.58]
[1765910241759,7.82717595,127.76,127.75,8.58]
[1765910241961,10.27729974,127.76,127.75,8.58]
[1765910242858,29.84523962,127.76,127.71,7.82993566]
[1765910243059,2.45012379,127.74,127.72,9.25]
[1765910243367,0.66,127.75,127.72,9.25]
[1765910243551,3.11012379,127.75,127.72,9.25]
[1765910243938,2.45012379,127.74,127.73,8.58]
[1765910244467,3.11012379,127.75,127.73,8.58]
[1765910244643,2.45012379,127.74,127.73,8.58]
[1765910245061,10.27852523,127.74,127.73,8.58]
[1765910245282,10.27852523,127.74,127.71,0.67]
[1765910245446,2.45012379,127.72,127.71,0.67]
[1765910245641,2.45012379,127.73,127.71,9.25]
[1765910246041,2.45012379,127.73,127.71,8.58]
[1765910246241,2.45012379,127.73,127.71,9.25]
[1765910247171,7.8296273,127.72,127.71,9.25]
[1765910247467,7.8296273,127.72,127.7,0.87]
[1765910247689,7.8296273,127.72,127.71,8.58]
[1765910247963,10.27975109,127.72,127.71,9.25]
[1765910248173,7.8296273,127.72,127.71,9.25]
[1765910248356,20.23042515,127.75,127.72,0.67]
[1765910248547,2.45012379,127.74,127.72,0.67]
[1765910249245,7.82901432,127.73,127.72,0.67]
[1765910250749,7.82901432,127.73,127.72,9.25]
[1765910251270,7.82901432,127.73,127.72,0.67]
[1765910251472,7.82901432,127.73,127.72,9.25]
[1765910251681,7.82901432,127.73,127.72,0.67]
[1765910251979,7.82901432,127.73,127.72,9.25]
[1765910253565,7.82840144,127.74,127.72,9.25]
[1765910253787,10.27852523,127.74,127.72,8.58]
[1765910253963,2.45012379,127.73,127.72,0.66]
[1765910254170,2.45012379,127.73,127.72,8.58]
[1765910254551,27.39940504,127.74,127.72,9.27]
[1765910254757,29.84952883,127.74,127.72,9.27]
[1765910255981,18.26470913,127.77,127.73,0.69]
[1765910256153,7.82619244,127.78,127.74,0.69]
[1765910256359,2.45012379,127.79,127.75,0.69]
[1765910256360,7.82533844,127.79,127.75,0.69]
[1765910256657,7.82533844,127.79,127.77,0.69]
[1765910256868,7.82501827,127.8,127.77,0.69]
[1765910257382,7.82434004,127.81,127.77,0.69]
[1765910258086,7.82434004,127.81,127.78,0.69]
[1765910259866,10.27446383,127.81,127.78,0.69]
[1765910260074,10.27446383,127.81,127.79,9.27]
[1765910260384,2.45012379,127.8,127.76,0.69]
[1765910260563,3.13012379,127.79,127.76,0.69]
[1765910260765,3.13012379,127.79,127.77,8.58]
[1765910260965,2.45012379,127.79,127.77,9.27]
[1765910261159,2.45012379,127.78,127.75,0.69]
[1765910261480,2.45012379,127.79,127.76,9.27]
[1765910261679,3.13012379,127.79,127.76,9.27]
[1765910261862,7.82595085,127.78,127.76,9.27]
[1765910262071,10.27607464,127.78,127.76,9.27]
[1765910264379,7.82595085,127.78,127.77,0.69]
[1765910264973,7.82595085,127.78,127.76,9.27]
[1765910265173,10.27607464,127.78,127.76,9.27]
[1765910265386,7.82595085,127.78,127.76,9.27]
[1765910265692,11.65386674,127.78,127.76,9.27]
[1765910266495,27.39082798,127.78,127.72,14.26558885]
[1765910266697,4.50791589,127.77,127.74,0.69]
[1765910266873,3.82791589,127.76,127.75,8.58]
[1765910267193,4.50791589,127.76,127.72,0.69]
[1765910267390,3.82791589,127.75,127.73,9.27]
[1765910269698,11.65566259,127.76,127.73,9.27]
[1765910270892,3.82791589,127.75,127.73,0.69]
[1765910271090,3.82791589,127.75,127.74,8.58]
[1765910272076,11.65570453,127.75,127.74,8.58]
[1765910274591,0.68,127.74,127.7,0.89]
[1765910274887,4.50791589,127.71,127.7,0.2]
[1765910275106,14.94558885,127.71,127.7,0.2]
[1765910276499,22.77582923,127.71,127.7,0.2]
[1765910276834,0.68,127.7,127.69,0.2]
[1765910277118,4.50791589,127.7,127.69,0.2]
[1765910278822,22.77644241,127.7,127.69,0.2]
[1765910279396,22.09644241,127.7,127.69,0.2]
[1765910279598,11.65876945,127.7,127.69,0.2]
[1765910280725,7.83085356,127.7,127.69,0.89]
[1765910280911,11.65876945,127.7,127.69,0.2]
[1765910281229,12.33876945,127.7,127.69,0.2]
[1765910284731,11.65876945,127.7,127.69,0.89]
[1765910284928,11.65876945,127.7,127.69,0.2]
[1765910285337,7.83085356,127.7,127.69,0.2]
[1765910285527,11.65876945,127.7,127.69,0.2]
[1765910286137,12.33876945,127.7,127.69,0.2]
[1765910288759,0.68,127.66,127.65,0.2]
[1765910289047,14.94558885,127.66,127.65,0.2]
[1765910289235,10.43767296,127.66,127.65,0.2]
[1765910289431,4.50791589,127.68,127.65,0.2]
[1765910289619,3.82791589,127.66,127.65,0.89]
[1765910290353,7.83330722,127.66,127.65,0.89]
[1765910291750,7.83300115,127.67,127.66,0.69]
[1765910292452,11.65999609,127.68,127.66,0.69]
[1765910293439,3.82791589,127.67,127.66,0.69]
[1765910294988,0.68,127.66,127.65,0.2]
[1765910295258,4.50791589,127.66,127.65,0.2]
[1765910296151,3.82791589,127.66,127.65,0.2]
[1765910296964,11.66122311,127.66,127.65,0.2]
[1765910297778,11.66958538,127.66,127.65,0.2]
[1765910298677,11.66958538,127.66,127.64,0.2]
[1765910298678,14.95395112,127.65,127.64,0.2]
[1765910298987,14.27395112,127.65,127.64,0.2]
[1765910299151,22.10787199,127.65,127.64,0.2]
[1765910299351,10.43767296,127.61,127.59,0.2]
[1765910299548,14.27395112,127.6,127.59,0.2]
[1765910300054,14.95395112,127.6,127.59,0.2]
[1765910301286,22.79094171,127.6,127.59,0.2]
[1765910301574,0.68,127.59,127.56,0.2]
[1765910301765,10.69958935,127.57,127.56,0.2]
[1765910302079,10.69958935,127.57,127.56,0.89]
[1765910302963,18.53842293,127.57,127.56,0.89]
[1765910303469,7.83883358,127.57,127.56,0.2]
[1765910303666,18.53842293,127.57,127.56,0.89]
[1765910303863,7.8384527,127.58,127.56,0.2]
[1765910304073,18.53535176,127.62,127.58,0.69]
[1765910304279,38.1247578,127.62,127.58,0.69]
[1765910305305,27.42516845,127.62,127.58,0.69]
[1765910305582,10.69958935,127.61,127.58,0.69]
[1765910306274,10.69958935,127.6,127.58,0.69]
[1765910307268,10.69958935,127.6,127.56,0.89]
[1765910307269,10.69958935,127.59,127.56,0.89]
[1765910307473,10.69958935,127.58,127.56,0.89]
[1765910307671,10.69958935,127.58,127.57,0.69]
[1765910308178,28.10980991,127.6,127.56,0.2]
[1765910308382,0.68,127.59,127.56,0.89]
[1765910308584,10.69958935,127.57,127.56,0.89]
[1765910309378,18.5378085,127.58,127.57,0.69]
[1765910310988,18.53742615,127.59,127.57,0.69]
[1765910311574,10.69958935,127.58,127.57,0.69]
[1765910312693,10.69958935,127.58,127.56,0.89]
[1765910312871,18.53742615,127.59,127.57,0.69]
[1765910313477,7.8378368,127.59,127.57,0.69]
[1765910313677,18.53742615,127.59,127.57,0.69]
[1765910314271,7.8378368,127.59,127.57,0.69]
[1765910314590,10.69958935,127.61,127.58,0.71]
[1765910314773,10.69958935,127.62,127.58,0.71]
[1765910315181,10.43767296,127.62,127.58,0.71]
[1765910315368,10.69958935,127.61,127.58,0.71]
[1765910315999,7.83699059,127.6,127.58,0.71]
[1765910317895,7.83637645,127.61,127.58,0.71]
[1765910318069,10.43767296,127.62,127.6,0.71]
[1765910318390,7.83576241,127.62,127.6,0.71]
[1765910319202,18.53535176,127.62,127.6,0.71]
[1765910319582,7.83576241,127.62,127.6,0.71]
[1765910319901,18.53535176,127.62,127.6,0.71]
[1765910320083,7.83576241,127.62,127.6,0.71]
[1765910320284,18.53535176,127.62,127.6,0.71]
[1765910320805,7.83576241,127.62,127.6,0.71]
[1765910320983,18.53535176,127.62,127.6,0.71]
[1765910322401,27.42345098,127.63,127.6,0.71]
[1765910322593,38.12304033,127.63,127.6,0.71]
[1765910324507,7.83514847,127.63,127.6,0.71]
[1765910324802,10.69958935,127.62,127.6,9.31]
[1765910325173,10.69958935,127.62,127.61,0.71]
[1765910325373,6.57890053,127.62,127.61,0.71]
[1765910326202,34.68406898,127.62,127.6,8.6]
[1765910326373,6.57890053,127.61,127.6,8.6]
[1765910326999,28.10516845,127.62,127.6,8.6]
[1765910327993,27.42516845,127.62,127.6,8.6]
[1765910328501,27.42516845,127.62,127.6,9.31]
[1765910328804,7.83576241,127.62,127.6,8.6]
[1765910328975,7.83576241,127.62,127.61,0.71]
[1765910329171,7.83527469,127.63,127.61,0.71]
[1765910329590,14.41417522,127.63,127.61,0.71]
[1765910331788,6.57890053,127.62,127.57,0.71]
[1765910331992,6.57890053,127.62,127.6,9.31]
[1765910332407,34.00204641,127.63,127.61,0.71]
[1765910334302,34.00204641,127.63,127.6,8.6]
[1765910334512,7.25890053,127.62,127.6,8.6]
[1765910334896,6.57890053,127.61,127.6,8.6]
[1765910335098,6.57890053,127.61,127.59,0.71]
[1765910335305,6.57890053,127.61,127.59,9.31]
[1765910335608,0.68,127.61,127.58,0.71]
[1765910335803,7.83699059,127.6,127.58,0.71]
[1765910337410,14.41589112,127.6,127.58,0.71]
[1765910340594,34.00665342,127.61,127.58,0.71]
[1765910340794,34.68665342,127.61,127.58,0.71]
[1765910340989,34.68665342,127.61,127.58,9.31]
[1765910341492,7.83637645,127.61,127.59,0.71]
[1765910341717,34.68621812,127.61,127.59,8.6]
[1765910341920,34.00621812,127.61,127.59,8.6]
[1765910342091,34.00621812,127.61,127.59,9.31]
[1765910342704,7.25890053,127.6,127.57,0.71]
[1765910342903,7.25890053,127.6,127.58,8.6]
[1765910343190,6.57890053,127.6,127.58,9.31]
[1765910344518,6.57890053,127.59,127.57,9.3]
[1765910344719,7.83760482,127.59,127.57,9.3]
[1765910345616,10.29472408,127.59,127.57,9.3]
[1765910346005,7.83760482,127.59,127.57,9.3]
[1765910346318,7.83760482,127.59,127.57,8.6]
[1765910346623,7.83760482,127.59,127.58,0.7]
[1765910347698,7.83760482,127.59,127.57,9.3]
[1765910348797,2.45711926,127.58,127.56,0.9]
[1765910348997,2.45711926,127.57,127.56,0.2]
[1765910349222,3.13711926,127.57,127.56,0.2]
[1765910349423,2.45711926,127.57,127.56,0.2]
[1765910349625,2.45711926,127.58,127.56,0.2]
[1765910350000,2.45711926,127.58,127.56,0.9]
[1765910350432,29.88873614,127.59,127.57,0.7]
[1765910350800,30.56873614,127.59,127.56,0.9]
[1765910351304,7.83883358,127.57,127.56,0.9]
[1765910353033,8.22767296,127.61,127.56,8.03918812]
[1765910353331,0.69,127.75,127.64,10.43767296]
[1765910353537,0.69,127.74,127.67,2.45711926]
[1765910353827,0.69,127.7,127.66,8.80994492]
[1765910354030,0.69,127.7,127.66,11.26706418]
[1765910354341,0.69,127.7,127.66,8.80994492]
[1765910354507,0.69,127.7,127.66,11.26706418]
[1765910354705,31.49030019,127.75,127.66,11.26706418]
[1765910354706,2.45711926,127.72,127.67,2.45711926]
[1765910354910,0.69,127.71,127.67,2.45711926]
[1765910355107,0.69,127.71,127.67,7.83246471]
[1765910355430,0.69,127.72,127.66,8.80994492]
[1765910355627,7.25919161,127.7,127.66,8.80994492]
[1765910355823,7.82919555,127.73,127.67,16.6423457]
[1765910356005,6.56919161,127.72,127.67,16.6423457]
[1765910356204,0.69,127.71,127.67,16.6423457]
[1765910356423,0.69,127.72,127.65,7.83343121]
[1765910356613,6.56919161,127.7,127.68,8.6]
[1765910356815,0.69,127.71,127.68,8.6]
[1765910357013,0.69,127.7,127.68,8.6]
[1765910357406,0.69,127.71,127.68,8.6]
[1765910357619,7.25919161,127.71,127.68,8.6]
[1765910358737,7.25919161,127.7,127.67,8.58]
[1765910360033,14.40006378,127.7,127.67,8.58]
[1765910360216,15.09006378,127.7,127.67,8.58]
[1765910360627,7.83087217,127.7,127.64,7.83437931]
[1765910360826,0.69,127.67,127.65,8.58]
[1765910361035,7.25919161,127.68,127.65,8.58]
[1765910361808,6.56919161,127.67,127.65,8.58]
[1765910362617,15.09136475,127.68,127.65,8.58]
[1765910363005,0.69,127.68,127.65,8.58]
[1765910363306,6.56919161,127.7,127.65,16.41381508]
[1765910363505,6.56919161,127.7,127.65,22.98300669]
[1765910363719,0.69,127.74,127.68,6.56919161]
[1765910363913,15.08820593,127.73,127.69,8.58]
[1765910364233,6.56919161,127.74,127.69,15.14919161]
[1765910364421,103.6,127.76,127.69,15.14919161]
[1765910364422,7.25919161,127.75,127.7,15.37913653]
[1765910364644,7.25919161,127.75,127.71,6.56919161]
[1765910364645,0.69,127.75,127.71,6.56919161]
[1765910365216,0.69,127.75,127.71,14.39902241]
[1765910365629,0.69,127.75,127.72,8.58]
[1765910366031,15.28649956,127.76,127.72,8.58]
[1765910366336,7.45919161,127.76,127.72,16.4096148]
[1765910367116,0.89,127.76,127.72,22.97880641]
[1765910367439,0.69,127.75,127.72,8.58]
[1765910368130,0.69,127.75,127.72,16.40947611]
[1765910368306,0.69,127.75,127.72,8.58]
[1765910369741,0.69,127.75,127.72,16.40952354]
[1765910370743,8.51779175,127.75,127.72,8.58]
[1765910370937,0.69,127.74,127.73,8.58]
[1765910371317,0.69,127.73,127.72,8.58]
[1765910372330,0.69,127.74,127.72,8.58]
[1765910374225,0.66,127.74,127.72,8.58]
[1765910374742,8.48866649,127.74,127.72,8.58]
[1765910375741,8.48866649,127.74,127.68,33.50818282]
[1765910375742,0.69,127.72,127.68,6.56469311]
[1765910375930,0.69,127.71,127.69,8.58]
[1765910376130,6.56469311,127.71,127.66,17.00236607]
[1765910376446,8.52102307,127.7,127.67,8.58]
[1765910376649,0.69,127.69,127.67,8.58]
[1765910377416,15.08571618,127.7,127.67,8.58]
[1765910377917,6.56469311,127.71,127.67,16.41265565]
[1765910378130,8.5204643,127.71,127.67,22.97734876]
[1765910378829,0.69,127.72,127.68,6.56469311]
[1765910379527,15.08407679,127.73,127.68,6.56469311]
[1765910379845,15.08265032,127.75,127.71,7.83024038]
[1765910380033,0.69,127.74,127.72,8.58]
[1765910380346,25.02981466,127.76,127.72,8.58]
[1765910380649,0.2,127.76,127.73,6.56469311]
[1765910380847,0.89,127.76,127.73,6.56469311]
[1765910381358,0.2,127.76,127.73,6.56469311]
[1765910381732,0.89,127.76,127.73,6.56469311]
[1765910382232,0.2,127.76,127.73,14.39348515]
[1765910382556,0.69,127.75,127.72,14.39403828]
[1765910382872,0.69,127.75,127.74,8.58]
[1765910383723,0.69,127.74,127.73,8.58]
[1765910384124,7.25469311,127.74,127.73,8.58]
[1765910384648,15.08309455,127.74,127.73,8.58]
[1765910384856,8.51840144,127.74,127.73,8.58]
[1765910386047,0.69,127.73,127.72,8.58]
[1765910386252,7.25469311,127.73,127.72,8.58]
[1765910386435,0.69,127.73,127.72,8.58]
[1765910386636,7.25469311,127.73,127.72,8.58]
[1765910386852,0.69,127.73,127.72,8.58]
[1765910387033,7.25469311,127.73,127.72,8.58]
[1765910387553,11.36250766,127.73,127.72,8.58]
[1765910387857,19.19152198,127.73,127.72,8.58]
[1765910388056,30.20641233,127.76,127.72,8.58]
[1765910388363,8.51778864,127.75,127.72,19.25250766]
[1765910388731,8.51778864,127.75,127.72,27.08207939]
[1765910389841,0.69,127.75,127.72,19.25250766]
[1765910390042,0.69,127.75,127.72,8.58]
[1765910390240,0.69,127.74,127.7,18.50303857]
[1765910390430,0.69,127.74,127.73,8.58]
[1765910390835,8.51790388,127.75,127.7,18.50303857]
[1765910391047,19.19041154,127.75,127.71,8.58]
[1765910391250,8.51790388,127.75,127.71,19.25250766]
[1765910391539,8.71744843,127.76,127.73,10.67250766]
[1765910391738,8.71744843,127.76,127.74,8.58]
[1765910394672,0.2,127.76,127.74,8.58]
[1765910394856,0.2,127.76,127.74,27.08087531]
[1765910395038,0.2,127.76,127.74,16.40836765]
[1765910395238,0.2,127.76,127.74,27.08087531]
[1765910396044,0.2,127.76,127.74,16.40836765]
[1765910396365,0.2,127.76,127.74,27.08087531]
[1765910396565,0.2,127.76,127.74,8.58]
[1765910398961,8.02735137,127.76,127.74,8.58]
[1765910399859,0.69,127.75,127.74,8.58]
[1765910400166,0.69,127.75,127.71,18.50244382]
[1765910400352,0.69,127.75,127.72,8.58]
[1765910400846,0.69,127.75,127.72,16.40955312]
[1765910401064,0.2,127.76,127.73,10.67250766]
[1765910401662,0.2,127.76,127.74,10.67250766]
[1765910401970,0.2,127.76,127.75,8.58]
[1765910410871,0.2,127.76,127.74,7.82832847]
[1765910411067,0.92,127.76,127.75,8.58]
[1765910411553,0.2,127.76,127.75,8.58]
[1765910412772,0.2,127.76,127.75,20.2353981]
[1765910413171,8.74325433,127.83,127.76,8.80994492]
[1765910413374,8.74325433,127.83,127.78,8.80994492]
[1765910413375,0.72,127.82,127.78,8.80994492]
[1765910413562,0.72,127.82,127.79,16.40501576]
[1765910413756,0.72,127.82,127.79,20.23262522]
[1765910414179,8.54351483,127.82,127.79,20.23262522]
[1765910416156,8.74309878,127.83,127.79,20.23262522]
[1765910416774,8.74309878,127.83,127.8,3.82760946]
[1765910416979,8.74309878,127.83,127.81,8.58]
[1765910418871,8.02309878,127.83,127.81,8.58]
[1765910419060,8.54350179,127.82,127.81,8.58]
[1765910419677,8.74320977,127.83,127.81,8.58]
[1765910420179,0.72,127.82,127.81,8.58]
[1765910420362,0.72,127.81,127.77,7.82620561]
[1765910420564,0.2,127.83,127.81,7.82356403]
[1765910420762,0.2,127.83,127.82,21.21755438]
[1765910421270,0.2,127.83,127.82,29.04105617]
[1765910427180,0.2,127.87,127.83,8.80994492]
[1765910427376,0.2,127.87,127.86,3.82760946]
[1765910427572,0.2,127.87,127.86,12.40760946]
[1765910428092,0.2,127.87,127.86,8.58]
[1765910428276,0.92,127.87,127.86,8.58]
[1765910428477,0.92,127.87,127.84,3.82760946]
[1765910428673,0.92,127.87,127.86,8.58]
[1765910428884,0.2,127.87,127.86,16.40105427]
[1765910429086,0.2,127.87,127.86,20.22866373]
[1765910429592,0.2,127.87,127.86,29.03860865]
[1765910429774,0.2,127.87,127.86,43.30389107]
[1765910430387,0.2,127.87,127.86,39.47628161]
[1765910431300,0.2,127.87,127.86,16.40105427]
[1765910432404,0.2,127.87,127.86,8.58]
[1765910432696,0.2,127.87,127.86,16.40105427]
[1765910433013,0.2,127.87,127.84,10.43767296]
[1765910433168,0.72,127.86,127.85,8.58]
[1765910434077,0.89,127.87,127.85,8.58]
[1765910434276,0.2,127.87,127.85,16.40161527]
[1765910434674,0.72,127.86,127.85,8.58]
[1765910434981,0.92,127.87,127.85,20.22927547]
[1765910436882,0.2,127.87,127.85,20.22927547]
[1765910437090,0.92,127.87,127.85,20.22927547]
[1765910437601,0.2,127.87,127.86,3.82760946]
[1765910438590,0.2,127.87,127.86,11.64866373]
[1765910438790,0.2,127.87,127.86,20.45860865]
[1765910440101,0.2,127.87,127.86,20.45085184]
[1765910441574,0.2,127.87,127.86,11.64090692]
[1765910441983,0.2,127.87,127.86,20.22090692]
[1765910442371,0.2,127.87,127.86,11.64090692]
[1765910442577,0.2,127.87,127.86,20.22090692]
[1765910442995,0.2,127.87,127.86,7.82105427]
[1765910443301,0.2,127.87,127.86,20.22090692]
[1765910445801,0.2,127.87,127.86,29.03085184]
[1765910446694,0.2,127.87,127.86,16.40105427]
[1765910447008,0.2,127.87,127.86,20.22090692]
[1765910449398,0.2,127.87,127.86,18.84605646]
[1765910452218,0.72,127.86,127.84,11.25494711]
[1765910452419,0.72,127.86,127.85,16.40166601]
[1765910453301,0.92,127.87,127.86,7.82105427]
[1765910454416,0.2,127.87,127.86,7.82105427]
[1765910454603,0.2,127.87,127.86,19.07600138]
[1765910455713,0.2,127.87,127.86,16.63099919]
[1765910455902,0.2,127.87,127.86,19.07600138]
[1765910459916,0.92,127.87,127.86,7.82105427]
[1765910460102,0.2,127.87,127.86,18.84605646]
[1765910460716,0.92,127.87,127.86,18.84605646]
[1765910460892,0.2,127.87,127.86,18.84605646]
[1765910461292,0.2,127.87,127.86,27.65600138]
[1765910461502,0.2,127.87,127.86,30.10100357]
[1765910462000,0.2,127.87,127.86,27.65600138]
[1765910462821,0.2,127.87,127.86,25.21099919]
[1765910463028,0.92,127.87,127.86,18.84605646]
[1765910463226,0.2,127.87,127.86,18.84605646]
[1765910463721,0.2,127.87,127.86,27.65600138]
[1765910467024,0.89,127.87,127.86,27.65600138]
[1765910467227,0.2,127.87,127.86,27.65600138]
[1765910469112,0.89,127.87,127.86,19.07600138]
[1765910469313,0.89,127.87,127.86,27.65600138]
[1765910469900,0.89,127.87,127.86,19.07600138]
[1765910470230,0.69,127.86,127.85,16.63129635]
[1765910470540,0.69,127.86,127.85,25.21129635]
[1765910471029,0.69,127.86,127.85,16.63129635]
[1765910471229,0.69,127.86,127.85,16.40135143]
[1765910471612,0.69,127.86,127.85,18.84635362]
[1765910472806,0.89,127.87,127.85,18.84635362]
[1765910473221,0.89,127.87,127.86,2.44500219]
[1765910473526,0.2,127.87,127.86,11.25494711]
[1765910475018,0.2,127.87,127.86,13.6999493]
[1765910475213,0.2,127.87,127.86,21.52100357]
[1765910475426,0.2,127.87,127.86,31.95867653]
[1765910475826,0.2,127.88,127.87,8.80994492]
[1765910476131,0.2,127.88,127.87,20.61699137]
[1765910477238,0.2,127.88,127.87,28.437434]
[1765910477425,0.1,127.89,127.87,47.98854059]
[1765910477733,0.69,128.02,127.97,19.24761788]
[1765910477909,0.69,128.02,127.97,32.71762226]
[1765910478232,0.69,128.02,127.97,33.4990554]
[1765910478933,0.69,128.04,127.98,8.80994492]
[1765910479130,0.1,128.01,127.99,27.6480575]
[1765910479305,0.1,128.01,127.99,28.42936853]
[1765910480506,0.1,128.01,127.99,19.0680575]
[1765910480507,0.79,128.0,127.99,19.0680575]
[1765910480705,0.1,128.0,127.99,27.6280575]
[1765910483834,0.79,128.0,127.99,17.36994492]
[1765910485332,0.79,128.0,127.99,19.81494711]
[1765910485536,0.1,128.0,127.99,27.6280575]
[1765910485719,0.79,128.0,127.99,27.6280575]
[1765910486035,0.1,128.0,127.99,27.6280575]
[1765910487141,0.1,128.01,128.0,8.80994492]
[1765910487435,0.1,128.01,128.0,11.25494711]
[1765910487939,0.79,128.05,128.0,12.03619711]
[1765910488136,0.1,128.05,128.04,11.25494711]
[1765910488332,0.1,128.05,128.04,19.81494711]
[1765910488529,0.1,128.05,128.04,30.07000865]
[1765910489525,0.1,128.05,128.04,31.70751826]
[1765910492446,1e-08,128.05,128.04,31.70751826]
[1765910492645,0.1,128.08,128.07,19.24761788]
[1765910492833,0.1,128.11,128.1,15.33745891]
[1765910493141,0.1,128.11,128.1,23.89745891]
[1765910494647,0.82,128.11,128.1,31.70386015]
[1765910494840,0.82,128.11,128.1,8.80994492]
[1765910495043,0.82,128.11,128.1,8.56]
[1765910495927,8.62584901,128.11,128.1,8.56]
[1765910496338,0.72,128.1,128.08,8.80994492]
[1765910496543,0.72,128.1,128.09,8.56]
[1765910496753,8.52640124,128.1,128.09,8.56]
[1765910496929,0.72,128.1,128.09,8.56]
[1765910497732,0.72,128.1,128.09,25.17695561]
[1765910497948,0.72,128.1,128.09,31.7044696]
[1765910500434,0.82,128.11,128.1,8.80994492]
[1765910500751,0.82,128.11,128.1,15.33745891]
[1765910500940,0.82,128.11,128.1,23.14386015]
[1765910501453,0.1,128.11,128.1,23.14386015]
[1765910501668,0.1,128.13,128.12,19.24761788]
[1765910501832,0.1,128.13,128.12,35.11565013]
[1765910502036,7.79991234,128.21,128.12,35.11565013]
[1765910502358,0.72,128.2,128.17,6.52751399]
[1765910502554,0.72,128.2,128.18,8.56]
[1765910502747,0.72,128.2,128.17,8.80994492]
[1765910503054,0.72,128.2,128.18,8.56]
[1765910503239,0.72,128.2,128.19,15.33745891]
[1765910503434,0.72,128.2,128.19,8.80994492]
[1765910503751,0.72,128.2,128.18,8.56]
[1765910503940,0.72,128.2,128.17,14.3292326]
[1765910504139,0.72,128.19,128.18,8.56]
[1765910505248,0.72,128.19,128.18,17.36994492]
[1765910505647,0.72,128.19,128.18,23.89745891]
[1765910505963,0.72,128.19,128.18,31.698988]
[1765910506334,0.72,128.19,128.18,17.36994492]
[1765910506534,0.72,128.19,128.18,23.89745891]
[1765910506736,0.72,128.19,128.18,15.33745891]
[1765910506953,0.72,128.19,128.18,23.89745891]
[1765910507345,0.72,128.18,128.16,8.80994492]
[1765910507656,0.72,128.18,128.17,8.56]
[1765910509151,7.80157697,128.18,128.15,14.33059012]
[1765910509351,0.72,128.17,128.16,8.56]
[1765910509864,0.72,128.17,128.16,25.17269148]
[1765910510062,0.72,128.2,128.17,16.61181849]
[1765910510237,0.72,128.2,128.18,8.56]
[1765910511945,0.72,128.2,128.18,20.16344707]